bitfinex/quotes_ETHUSD_20251119
["timestamp","ask_amount","ask_price","bid_price","bid_amount"]
[1763523572904,0.9630859,3083.1,3081.6,0.001]
[1763523573307,0.4636,3083.0,3081.6,0.001]
[1763523573692,0.1812,3082.9,3081.6,0.001]
[1763523573991,0.38632785,3082.9,3081.6,0.001]
[1763523574187,0.4636,3082.8,3081.6,0.001]
[1763523574392,0.1812,3082.9,3081.7,0.2035]
[1763523574608,0.4636,3082.8,3081.6,0.001]
[1763523575117,0.4636,3082.8,3081.6,0.2045]
[1763523575413,0.1812,3082.9,3081.7,0.03244962]
[1763523575777,0.1812,3082.9,3081.8,0.2035]
[1763523576097,0.1812,3082.9,3081.9,0.03244751]
[1763523576298,0.1812,3082.9,3081.9,0.23594751]
[1763523576517,0.002,3083.6,3081.9,0.23594751]
[1763523576727,0.002,3083.6,3082.8,0.2035]
[1763523577193,0.002,3083.6,3082.9,0.23593699]
[1763523577393,0.002,3083.6,3083.5,0.2035]
[1763523579101,0.002,3083.6,3083.2,0.2035]
[1763523579418,0.002,3083.6,3082.8,0.405504]
[1763523579584,0.002,3083.6,3082.8,0.609004]
[1763523579780,0.002,3083.6,3082.9,0.2035]
[1763523579998,0.002,3083.6,3083.5,0.2035]
[1763523580890,0.002,3083.6,3083.5,0.407]
[1763523581298,0.002,3083.6,3083.5,0.2035]
[1763523582213,0.002,3083.6,3083.5,0.407]
[1763523583128,0.002,3083.6,3083.5,0.812504]
[1763523584034,0.002,3083.6,3083.5,0.609004]
[1763523584202,0.002,3083.6,3083.5,0.812504]
[1763523586404,1.85818795,3087.0,3084.7,0.3122]
[1763523586602,0.1888,3086.9,3084.8,6.59748608]
[1763523586802,0.6494,3086.9,3085.0,0.405504]
[1763523587094,0.4606,3086.8,3085.2,0.405504]
[1763523587489,0.03215966,3086.7,3084.9,0.42245966]
[1763523587816,0.4606,3086.8,3085.0,0.607004]
[1763523587993,0.49275966,3086.7,3085.0,0.607004]
[1763523588924,0.4606,3086.7,3085.0,0.607004]
[1763523589226,0.4606,3086.7,3085.2,0.405504]
[1763523589527,0.1888,3086.9,3085.4,0.405504]
[1763523589701,0.1888,3087.0,3085.6,0.405504]
[1763523589901,0.1888,3086.9,3085.6,0.405504]
[1763523590101,0.1888,3086.9,3085.8,0.405504]
[1763523590327,0.6494,3086.9,3085.8,0.405504]
[1763523590529,0.6494,3086.9,3085.4,0.405504]
[1763523590820,0.4606,3086.8,3085.6,0.405504]
[1763523591592,0.03215966,3086.7,3085.1,0.2015]
[1763523591794,0.03215966,3086.7,3085.2,0.405504]
[1763523592005,0.4606,3086.6,3085.2,0.405504]
[1763523592208,0.03215966,3086.5,3085.2,0.405504]
[1763523592407,0.4606,3086.6,3085.3,0.2015]
[1763523594050,0.03215966,3086.5,3084.9,0.2015]
[1763523594343,0.645,3085.4,3084.4,0.1107]
[1763523594507,0.4562,3084.9,3084.4,0.1107]
[1763523594706,0.4562,3084.9,3083.5,0.03243067]
[1763523594908,0.4562,3084.5,3083.4,0.2015]
[1763523595792,0.4562,3084.5,3083.5,0.405504]
[1763523595997,0.4562,3084.5,3083.4,0.2015]
[1763523596715,0.4606,3084.8,3083.5,0.03243067]
[1763523596896,0.4606,3084.8,3083.6,0.405504]
[1763523597094,0.4606,3084.8,3083.7,0.03242857]
[1763523597338,0.4606,3084.8,3083.6,0.405504]
[1763523597495,0.4606,3084.8,3083.7,0.03242857]
[1763523597697,0.4606,3084.8,3083.6,0.405504]
[1763523597925,0.4606,3084.8,3083.5,0.2015]
[1763523598133,0.4606,3084.8,3083.6,0.03242962]
[1763523601342,0.4606,3084.8,3083.2,0.405504]
[1763523601508,0.4606,3084.8,3083.0,0.0908]
[1763523601920,0.4606,3084.8,3082.8,0.0908]
[1763523603432,0.4606,3084.8,3083.0,0.405504]
[1763523604046,0.4606,3084.8,3082.8,0.0908]
[1763523605256,0.4606,3084.8,3082.8,0.2923]
[1763523605454,0.4606,3084.8,3082.9,0.43794099]
[1763523605674,0.4606,3084.8,3083.0,0.2015]
[1763523605968,0.4606,3084.8,3083.1,0.03243488]
[1763523606125,0.4606,3084.8,3082.9,0.607004]
[1763523606465,0.03215966,3084.7,3083.0,0.2015]
[1763523606633,0.4606,3084.8,3083.0,0.23393593]
[1763523606839,0.6844,3083.1,3081.2,0.001]
[1763523607052,0.6844,3081.7,3081.2,0.001]
[1763523607224,1.153,3081.7,3081.2,0.001]
[1763523608251,0.9683,3081.6,3081.2,0.001]
[1763523612473,0.4997,3081.4,3081.2,0.001]
[1763523612795,0.4997,3081.4,3080.1,0.001]
[1763523612796,0.4997,3081.0,3080.1,0.001]
[1763523612976,0.6844,3080.2,3078.8,0.13021617]
[1763523613175,0.6844,3080.2,3078.7,0.0908]
[1763523613377,0.4686,3080.1,3078.7,0.0908]
[1763523615063,0.4686,3080.1,3078.4,0.0918]
[1763523617485,0.4686,3080.1,3078.1,0.2359]
[1763523617486,0.4686,3080.1,3078.2,0.0918]
[1763523617686,0.4997,3078.3,3077.1,0.2359]
[1763523617993,0.1847,3078.5,3077.1,0.2359]
[1763523618195,0.1847,3079.0,3078.4,0.0918]
[1763523618596,0.1847,3079.0,3077.1,0.405504]
[1763523618597,0.4997,3078.5,3077.3,0.2359]
[1763523619075,0.4686,3078.4,3077.0,0.1441]
[1763523619776,0.4686,3078.4,3077.0,0.38]
[1763523620186,0.4686,3078.4,3077.0,0.1441]
[1763523620728,0.1847,3079.0,3077.1,0.25253713]
[1763523620729,0.4686,3078.8,3077.1,0.25253713]
[1763523620909,0.4686,3078.8,3077.1,0.65804113]
[1763523621076,0.4686,3078.8,3077.1,0.641404]
[1763523621280,0.4686,3078.8,3077.0,0.38]
[1763523621599,0.4686,3078.8,3077.0,0.1441]
[1763523623884,0.4686,3078.8,3077.2,0.405504]
[1763523624195,0.4686,3078.8,3077.3,0.2359]
[1763523625514,0.1847,3079.0,3077.3,0.2359]
[1763523626010,0.1847,3079.0,3077.4,0.42213007]
[1763523626208,0.1847,3079.0,3077.4,0.405504]
[1763523626412,0.1847,3079.0,3077.5,0.2359]
[1763523626585,0.6528,3079.0,3077.5,0.2359]
[1763523627202,0.6493,3079.5,3078.9,0.0918]
[1763523627402,0.1812,3079.5,3078.9,0.0918]
[1763523627604,0.1812,3079.8,3078.9,0.0918]
[1763523627810,0.1812,3079.9,3078.9,0.3277]
[1763523628312,0.002,3080.8,3080.4,0.1421]
[1763523628513,0.002,3080.8,3080.5,0.405504]
[1763523628735,0.002,3080.8,3080.4,0.1421]
[1763523629141,0.002,3080.8,3080.4,0.376]
[1763523629433,0.002,3080.8,3080.5,0.405504]
[1763523629633,0.002,3080.8,3080.5,6.58496371]
[1763523629832,0.002,3080.8,3080.7,0.405504]
[1763523630334,0.002,3080.8,3080.7,0.2339]
[1763523632242,0.04053309,3083.9,3080.8,0.405504]
[1763523632414,0.4681,3083.5,3081.0,1.31249664]
[1763523632605,0.1812,3084.0,3081.0,1.31249664]
[1763523632809,0.6493,3083.0,3081.2,0.405504]
[1763523633003,0.6493,3083.0,3080.4,0.1421]
[1763523633204,0.4681,3082.9,3080.6,0.405504]
[1763523633641,0.4681,3082.9,3080.7,0.2339]
[1763523635019,0.1812,3083.0,3081.1,1.31249664]
[1763523635219,0.4681,3082.9,3081.2,0.94241521]
[1763523635706,0.4681,3082.9,3081.4,0.405504]
[1763523636010,0.1812,3083.0,3081.4,0.405504]
[1763523636211,0.1812,3083.0,3081.5,0.2339]
[1763523636416,0.475,3082.9,3081.5,0.2339]
[1763523636622,0.475,3082.9,3081.6,0.405504]
[1763523637023,0.475,3082.9,3081.3,0.405504]
[1763523637227,0.475,3083.4,3081.6,0.2339]
[1763523637432,0.475,3083.9,3081.7,1.31249664]
[1763523637641,0.475,3083.9,3081.8,0.73190521]
[1763523637818,0.475,3083.9,3081.7,0.639404]
[1763523638219,0.475,3083.9,3081.7,0.2339]
[1763523639255,0.645,3081.8,3081.3,0.01650754]
[1763523639454,0.4258076,3081.7,3079.9,0.2339]
[1763523639620,1.41804635,3081.7,3079.9,0.2339]
[1763523639944,0.475,3081.6,3080.0,0.01655121]
[1763523640523,0.475,3081.6,3079.9,0.2339]
[1763523640767,0.475,3081.6,3079.2,0.01655226]
[1763523640768,0.90248433,3081.7,3080.5,0.01654957]
[1763523640920,0.1839,3081.8,3080.5,0.01654957]
[1763523641116,0.6589,3081.8,3080.5,0.405504]
[1763523641957,0.51555018,3082.6,3080.5,0.405504]
[1763523642181,0.475,3082.6,3080.7,0.405504]
[1763523642353,0.475,3082.6,3080.8,0.25043433]
[1763523643879,0.475,3082.6,3080.9,0.405504]
[1763523644083,0.475,3082.6,3081.0,0.01653116]
[1763523644289,0.475,3082.6,3081.2,0.405504]
[1763523644460,0.1839,3083.0,3081.2,0.405504]
[1763523644461,0.1839,3083.0,3081.3,0.0165264]
[1763523644651,0.002,3082.9,3081.4,0.405504]
[1763523645152,0.002,3082.9,3081.6,0.405504]
[1763523645347,0.002,3082.9,3081.7,0.2339]
[1763523646370,0.475,3082.8,3081.3,0.405504]
[1763523646776,0.475,3082.8,3081.5,0.405504]
[1763523646953,0.475,3082.8,3081.6,0.01651956]
[1763523647964,0.002,3082.9,3081.8,0.405504]
[1763523648151,0.002,3082.9,3082.0,0.405504]
[1763523648683,0.002,3082.9,3082.2,0.405504]
[1763523648888,0.002,3082.9,3082.8,0.2339]
[1763523649261,0.002,3082.9,3082.8,0.873304]
[1763523650101,0.002,3083.3,3082.9,1.31249664]
[1763523650302,0.002,3083.3,3083.2,0.2339]
[1763523650471,0.002,3083.3,3083.2,0.639404]
[1763523650666,0.002,3083.3,3083.2,0.873304]
[1763523653690,0.002,3083.3,3083.2,0.639404]
[1763523653878,0.002,3083.3,3082.7,0.2339]
[1763523654079,0.002,3083.3,3082.5,0.2339]
[1763523654692,0.002,3083.3,3082.6,0.405504]
[1763523654894,0.002,3083.3,3082.5,0.2339]
[1763523655418,0.002,3083.3,3082.6,0.405504]
[1763523655575,0.002,3083.3,3082.2,0.405504]
[1763523656032,0.002,3083.3,3082.2,0.639404]
[1763523656869,0.002,3083.3,3082.2,0.2339]
[1763523657120,0.477,3083.3,3082.2,0.405504]
[1763523658541,0.477,3083.3,3081.2,6.25104177]
[1763523658542,0.477,3083.3,3081.5,0.2339]
[1763523658829,0.477,3083.3,3081.6,0.405504]
[1763523660522,0.477,3083.3,3081.5,0.2339]
[1763523660724,0.477,3083.3,3081.1,0.2339]
[1763523661036,0.90699264,3083.2,3080.8,0.01652226]
[1763523661196,1.23850344,3083.1,3080.5,0.2339]
[1763523661390,1.77220787,3083.1,3080.4,0.1421]
[1763523661608,0.475,3083.0,3080.6,0.25143121]
[1763523661927,0.17722079,3082.9,3080.6,0.25143121]
[1763523662093,0.36112079,3082.9,3080.7,0.405504]
[1763523662287,0.475,3082.8,3080.6,0.2349]
[1763523662690,0.475,3082.8,3080.7,0.405504]
[1763523662930,0.475,3082.8,3080.6,0.2349]
[1763523663307,0.475,3082.8,3081.0,0.001]
[1763523665532,1.00870443,3082.8,3081.0,0.001]
[1763523665736,1.44069707,3082.7,3081.0,0.001]
[1763523666028,0.81667388,3082.6,3081.0,0.001]
[1763523666407,0.475,3082.5,3081.0,0.001]
[1763523667228,6.25304177,3083.3,3081.4,6.25104177]
[1763523667229,0.002,3083.3,3081.4,6.25104177]
[1763523667441,0.4725,3083.3,3081.5,1.32901254]
[1763523667591,0.4725,3083.3,3081.7,0.405504]
[1763523667796,0.4725,3083.3,3081.8,0.01651114]
[1763523668005,0.4725,3083.3,3081.9,0.405504]
[1763523668330,0.4725,3083.3,3082.0,0.01650797]
[1763523668531,0.4725,3083.3,3081.6,0.75800543]
[1763523668711,0.4725,3083.3,3081.5,0.405504]
[1763523669217,0.4725,3083.3,3081.5,0.2339]
[1763523669808,0.4725,3083.3,3081.7,0.405504]
[1763523670020,0.4725,3083.3,3081.9,0.405504]
[1763523670220,0.4725,3083.3,3082.0,0.01650797]
[1763523670837,0.4725,3083.3,3082.1,0.0918]
[1763523671129,0.4725,3083.3,3082.2,0.01650482]
[1763523671345,0.002,3083.3,3082.2,0.42200882]
[1763523671546,0.002,3083.3,3082.3,0.2339]
[1763523671902,0.4725,3083.3,3082.3,0.2339]
[1763523672403,0.4725,3083.3,3082.1,0.0918]
[1763523672926,0.002,3083.3,3082.2,0.25040857]
[1763523674098,0.002,3083.3,3082.2,0.01650857]
[1763523674305,0.4705,3083.2,3082.1,0.0918]
[1763523675600,0.4705,3083.2,3082.2,0.01650854]
[1763523676099,0.4705,3083.2,3082.1,0.0918]
[1763523677236,0.4705,3083.2,3082.2,0.01650854]
[1763523677733,0.002,3083.3,3082.2,0.25040854]
[1763523677933,0.4725,3083.3,3082.2,0.25040854]
[1763523678436,0.4725,3083.3,3082.2,0.01650854]
[1763523678937,0.4725,3083.3,3081.5,0.25040752]
[1763523679236,0.4725,3083.3,3081.5,0.2339]
[1763523679436,0.04054229,3083.2,3081.6,0.405504]
[1763523679652,0.4725,3083.3,3081.7,0.01651754]
[1763523679937,0.4705,3083.2,3081.7,0.25041754]
[1763523680123,0.4705,3083.2,3081.8,0.405504]
[1763523680640,0.4705,3083.2,3082.0,0.405504]
[1763523681047,0.002,3083.3,3082.2,0.405504]
[1763523682441,0.002,3083.3,3082.3,0.2339]
[1763523682642,0.002,3083.3,3082.4,0.01650165]
[1763523682856,0.002,3083.3,3082.4,0.42200565]
[1763523683012,0.002,3083.3,3082.4,0.65590565]
[1763523684046,0.002,3083.3,3082.2,0.639404]
[1763523684251,0.002,3083.3,3082.2,0.65590777]
[1763523684433,0.002,3083.3,3082.4,0.405504]
[1763523684813,0.002,3083.3,3082.5,0.01650006]
[1763523685334,0.002,3083.3,3082.4,0.405504]
[1763523685544,0.002,3083.3,3082.3,0.2339]
[1763523685841,0.4822,3083.2,3082.2,0.405504]
[1763523686009,0.4822,3083.2,3082.3,0.01650428]
[1763523686213,0.002,3083.3,3082.3,0.01650428]
[1763523687010,0.002,3083.3,3082.4,0.2339]
[1763523687241,0.002,3083.3,3083.2,0.639404]
[1763523687820,0.002,3083.3,3083.2,0.873304]
[1763523688561,0.002,3083.3,3083.2,1.69103598]
[1763523689564,0.002,3083.3,3083.2,0.873304]
[1763523690413,0.002,3083.3,3083.2,0.88979194]
[1763523691945,0.002,3083.3,3083.2,0.873304]
[1763523693950,0.002,3083.6,3083.3,1.31249664]
[1763523694152,0.002,3083.6,3083.5,0.639404]
[1763523694453,0.4822,3085.1,3083.6,0.873304]
[1763523694689,0.4822,3085.1,3083.9,0.639404]
[1763523695022,0.4822,3085.1,3083.9,0.873304]
[1763523695725,0.4822,3084.5,3083.9,0.405504]
[1763523695952,0.4822,3084.9,3083.9,0.639404]
[1763523696359,0.4651,3084.7,3083.9,0.639404]
[1763523696580,0.4651,3085.1,3083.9,0.873304]
[1763523698470,0.94749946,3085.9,3083.0,0.2339]
[1763523698777,0.4651,3084.4,3083.1,0.25038217]
[1763523699083,0.4651,3084.4,3083.2,0.405504]
[1763523699449,0.4651,3084.4,3083.4,0.405504]
[1763523700076,0.4671,3084.4,3083.4,0.405504]
[1763523700372,0.4651,3084.2,3083.1,0.406504]
[1763523700573,0.002,3084.4,3083.3,0.405504]
[1763523700873,0.1909,3083.9,3083.3,0.405504]
[1763523701284,0.1909,3084.1,3083.1,0.406504]
[1763523701583,0.002,3084.4,3083.3,0.405504]
[1763523701745,0.002,3084.4,3083.4,0.01647848]
[1763523702077,0.4671,3084.4,3083.3,0.405504]
[1763523702973,0.4671,3084.4,3083.3,0.2339]
[1763523703141,0.4671,3084.4,3083.3,0.2503817]
[1763523704970,0.1909,3083.9,3083.1,0.001]
[1763523705181,0.002,3084.4,3083.1,0.001]
[1763523705182,0.002,3084.4,3083.3,0.405504]
[1763523705380,0.4671,3084.4,3083.4,0.01647848]
[1763523705666,0.4671,3084.4,3083.3,0.405504]
[1763523706079,0.002,3084.4,3083.9,0.639404]
[1763523706244,0.002,3084.4,3083.9,2.2665089]
[1763523706444,0.002,3084.4,3084.0,0.405504]
[1763523706662,0.002,3084.4,3084.3,0.781504]
[1763523706875,0.002,3084.4,3084.3,0.79796302]
[1763523707045,0.002,3084.7,3084.4,0.405504]
[1763523707251,0.002,3084.7,3084.6,0.639404]
[1763523708068,0.002,3084.7,3084.6,0.405504]
[1763523708255,0.4978,3084.7,3084.6,0.405504]
[1763523708467,0.002,3084.7,3084.6,0.405504]
[1763523709783,0.9629,3084.7,3083.9,0.70364272]
[1763523709976,0.9629,3084.7,3083.6,0.1421]
[1763523710155,0.4651,3084.6,3083.6,0.1421]
[1763523710355,0.4651,3084.6,3083.7,0.405504]
[1763523710856,0.4671,3084.7,3083.8,0.01646587]
[1763523711076,0.4671,3084.7,3083.7,0.639404]
[1763523711278,0.4671,3084.7,3083.8,0.0164675]
[1763523711482,0.4671,3084.7,3083.8,0.01646379]
[1763523711705,0.002,3084.7,3083.7,0.405504]
[1763523711855,0.002,3084.7,3084.6,0.639404]
[1763523712190,0.002,3084.7,3084.6,1.10914672]
[1763523712381,0.002,3084.7,3084.6,0.405504]
[1763523713599,0.002,3084.7,3084.6,0.873304]
[1763523714601,0.4958,3084.6,3083.1,0.001]
[1763523714775,0.4958,3084.5,3083.1,0.001]
[1763523715167,0.4651,3084.4,3083.1,0.001]
[1763523717499,0.4651,3084.4,3083.2,0.405504]
[1763523718002,0.4651,3084.4,3084.0,0.001]
[1763523718391,0.4958,3084.1,3084.0,0.001]
[1763523718774,0.9609,3084.1,3084.0,0.001]
[1763523719679,0.4958,3084.1,3084.0,0.001]
[1763523720874,0.4651,3084.6,3084.0,0.001]
[1763523723830,0.1929,3084.7,3084.1,0.1586]
[1763523724024,0.002,3084.7,3084.6,0.405504]
[1763523724318,0.002,3084.7,3084.2,0.405504]
[1763523724536,0.002,3085.1,3084.6,0.2504]
[1763523724822,0.002,3085.1,3084.9,0.405504]
[1763523725019,0.002,3085.1,3084.6,0.405504]
[1763523725192,0.002,3085.1,3084.8,0.405504]
[1763523725401,0.002,3085.1,3085.0,0.655904]
[1763523725598,0.002,3085.1,3085.0,0.405504]
[1763523725801,0.4978,3085.1,3085.0,0.405504]
[1763523726510,0.9907,3085.1,3085.0,0.405504]
[1763523728732,0.9907,3085.1,3084.1,6.55562319]
[1763523728733,0.9907,3085.1,3084.1,0.1586]
[1763523728932,0.4929,3085.0,3084.1,0.1586]
[1763523729298,0.4978,3085.1,3083.5,6.39702319]
[1763523729299,0.002,3085.1,3083.5,2.37705602]
[1763523729512,0.4929,3084.9,3083.9,0.1586]
[1763523729799,0.4929,3084.9,3084.0,0.406504]
[1763523730209,0.1999,3085.0,3084.0,0.406504]
[1763523730408,0.1999,3085.0,3084.0,0.656904]
[1763523730610,0.6928,3085.0,3084.0,0.656904]
[1763523731488,0.4929,3084.9,3084.0,0.001]
[1763523732510,0.1999,3085.0,3084.0,0.2514]
[1763523732727,0.6928,3085.0,3084.0,0.001]
[1763523733195,0.4929,3084.9,3084.0,0.001]
[1763523734599,0.1999,3085.0,3084.0,0.2514]
[1763523735132,0.4929,3084.9,3084.0,0.2514]
[1763523735423,0.4929,3084.9,3084.0,0.001]
[1763523736304,0.1999,3085.0,3084.0,0.001]
[1763523736511,0.4929,3084.9,3084.0,0.001]
[1763523739940,0.4929,3084.9,3084.1,0.405504]
[1763523740421,0.002,3085.1,3084.9,0.405504]
[1763523740826,0.4934,3085.0,3084.3,0.405504]
[1763523741619,0.1999,3084.9,3084.1,0.405504]
[1763523741928,0.1999,3084.9,3084.4,0.405504]
[1763523742126,0.1999,3084.9,3084.6,0.405504]
[1763523742339,0.4949,3085.1,3084.6,0.405504]
[1763523742648,0.002,3085.1,3084.6,0.405504]
[1763523743016,0.002,3085.1,3085.0,0.655904]
[1763523743515,0.9339,3085.1,3085.0,0.405504]
[1763523744125,0.456,3085.1,3085.0,0.405504]
[1763523744328,0.002,3085.1,3085.0,0.405504]
[1763523744529,0.456,3085.1,3085.0,0.405504]
[1763523745019,0.9339,3085.1,3085.0,0.405504]
[1763523746956,0.456,3085.1,3085.0,0.405504]
[1763523747553,0.9339,3085.1,3085.0,0.405504]
[1763523747947,0.456,3085.1,3085.0,0.405504]
[1763523748617,0.002,3085.1,3085.0,0.405504]
[1763523748822,0.456,3085.1,3085.0,0.405504]
[1763523750555,0.9339,3085.1,3085.0,0.405504]
[1763523752464,0.456,3085.1,3085.0,0.405504]
[1763523752832,0.002,3085.1,3085.0,0.405504]
[1763523753033,0.456,3085.1,3085.0,0.405504]
[1763523754363,0.9339,3085.1,3085.0,0.405504]
[1763523756773,0.002,3085.1,3085.0,0.655904]
[1763523756956,0.002,3085.4,3085.0,0.655904]
[1763523756957,0.002,3085.4,3085.1,0.405504]
[1763523757162,0.002,3085.4,3085.3,0.655904]
[1763523757542,0.002,3085.4,3085.3,0.906304]
[1763523758370,0.002,3085.8,3085.4,0.906304]
[1763523758576,0.002,3085.8,3085.7,0.655904]
[1763523758955,0.002,3085.8,3085.7,0.906304]
[1763523759154,0.4658,3086.8,3085.8,0.405504]
[1763523759353,0.4658,3086.9,3085.8,0.655904]
[1763523759561,0.4658,3086.9,3085.8,0.405504]
[1763523759766,0.002,3087.1,3086.0,0.405504]
[1763523759975,0.4658,3086.9,3086.0,0.405504]
[1763523760159,0.4658,3086.9,3086.2,0.405504]
[1763523760880,0.002,3087.1,3086.6,0.405504]
[1763523761091,0.002,3087.1,3086.6,0.655904]
[1763523761488,0.4678,3087.1,3086.6,0.405504]
[1763523761784,0.945,3086.7,3086.6,0.405504]
[1763523762177,0.002,3086.7,3086.6,0.405504]
[1763523763083,0.002,3086.7,3086.6,0.655904]
[1763523763266,0.002,3086.7,3086.6,0.405504]
[1763523763789,0.945,3086.7,3086.6,0.405504]
[1763523763963,0.4792,3086.7,3086.6,0.405504]
[1763523764456,0.945,3086.7,3086.6,0.405504]
[1763523765178,0.002,3086.7,3086.6,0.405504]
[1763523765552,0.4792,3086.7,3086.6,0.405504]
[1763523765885,0.945,3086.7,3086.6,0.405504]
[1763523767100,0.002,3086.7,3086.6,0.405504]
[1763523767304,0.4792,3086.7,3086.6,0.405504]
[1763523767976,0.945,3086.7,3086.6,0.405504]
[1763523768808,0.4792,3086.7,3086.6,0.405504]
[1763523769717,0.945,3086.7,3086.6,0.405504]
[1763523770596,0.945,3086.7,3085.8,0.0918]
[1763523770907,0.945,3086.7,3085.9,0.405504]
[1763523770908,0.4658,3086.6,3085.9,0.405504]
[1763523771573,0.4658,3086.6,3085.7,0.405504]
[1763523772927,0.4658,3086.6,3085.3,0.0918]
[1763523773082,0.4658,3086.6,3085.3,0.82608019]
[1763523773282,0.4658,3086.6,3085.4,0.405504]
[1763523774090,0.4658,3086.6,3085.4,0.655904]
[1763523774419,0.4658,3086.6,3085.4,0.405504]
[1763523778190,0.4658,3086.6,3085.4,4.265504]
[1763523778387,0.4658,3086.6,3085.5,0.4357304]
[1763523780907,0.4772,3085.6,3085.5,0.4357304]
[1763523781123,0.4772,3085.6,3085.5,0.8412344]
[1763523782247,0.002,3086.7,3085.6,0.405504]
[1763523782715,0.4658,3086.6,3085.6,0.405504]
[1763523783042,0.4772,3085.7,3085.3,0.405504]
[1763523783245,0.4772,3085.7,3085.1,0.0918]
[1763523783448,0.002,3086.7,3085.6,0.2504]
[1763523783746,0.4678,3086.7,3085.7,0.2504]
[1763523784349,0.002,3086.7,3086.0,0.90699264]
[1763523784513,0.002,3086.7,3086.1,0.96569216]
[1763523784714,0.002,3087.1,3086.7,0.90699264]
[1763523785447,0.002,3087.1,3086.8,0.405504]
[1763523785865,0.4678,3087.1,3086.5,0.405504]
[1763523786140,0.4678,3087.1,3086.3,0.405504]
[1763523788611,0.002,3087.1,3086.2,0.405504]
[1763523788814,0.002,3087.1,3086.2,1.31249664]
[1763523789014,0.5,3087.1,3086.2,1.31249664]
[1763523789241,0.5,3087.1,3086.3,0.83088256]
[1763523789441,0.5,3087.1,3086.4,0.405504]
[1763523789728,0.5,3087.1,3085.9,0.405504]
[1763523790047,0.5,3087.1,3085.9,0.655904]
[1763523790228,0.5,3087.1,3085.8,0.001]
[1763523791251,0.5,3087.1,3085.8,0.656904]
[1763523791632,0.002,3087.1,3086.1,1.31249664]
[1763523791834,0.002,3087.1,3086.6,0.405504]
[1763523792036,0.002,3087.1,3086.4,0.90699264]
[1763523792241,0.002,3087.1,3086.5,1.16134656]
[1763523792413,0.002,3087.1,3086.5,1.41174656]
[1763523792617,0.002,3087.1,3086.5,1.16134656]
[1763523793116,0.002,3087.1,3086.5,1.41174656]
[1763523793343,0.002,3087.1,3086.5,1.16134656]
[1763523793559,0.002,3087.1,3086.6,0.20683392]
[1763523794133,0.5,3087.1,3086.6,0.20683392]
[1763523794627,0.5,3087.1,3085.8,0.001]
[1763523794628,0.672,3086.7,3085.8,0.001]
[1763523794853,0.4769,3086.6,3085.8,0.001]
[1763523796589,0.4769,3086.6,3085.9,0.405504]
[1763523798579,0.1951,3086.7,3085.9,0.2504]
[1763523798780,0.1951,3086.7,3086.1,0.405504]
[1763523798961,0.002,3087.1,3086.7,0.405504]
[1763523799287,0.002,3087.1,3086.7,0.655904]
[1763523799485,0.498,3087.0,3086.4,0.405504]
[1763523799689,10.23,3088.3,3086.2,0.4265504]
[1763523799690,0.85085889,3089.3,3087.5,3.42]
[1763523799923,2.82984385,3090.5,3087.5,3.42]
[1763523799924,0.1951,3089.9,3089.3,0.90699264]
[1763523800067,0.498,3089.7,3088.9,1.74488478]
[1763523800271,0.5408,3088.4,3088.2,1.74488478]
[1763523800594,0.498,3089.7,3087.9,2.32579206]
[1763523800799,0.498,3089.6,3088.3,1.99205213]
[1763523800954,0.498,3089.6,3088.4,0.90699264]
[1763523801159,0.498,3089.6,3088.3,0.2504]
[1763523801367,0.498,3089.6,3088.7,0.90699264]
[1763523801603,0.1951,3089.9,3088.7,0.90699264]
[1763523801907,0.1951,3089.9,3088.8,0.2504]
[1763523802074,0.6485,3089.9,3088.8,0.2504]
[1763523802274,0.4534,3090.3,3089.2,0.90699264]
[1763523802586,0.4534,3090.3,3089.3,0.71529216]
[1763523802791,0.4534,3090.3,3089.3,0.80709216]
[1763523803190,0.002,3090.7,3089.3,0.80709216]
[1763523805210,0.4534,3090.6,3089.3,0.80709216]
[1763523805375,0.4534,3090.6,3089.4,0.17140848]
[1763523806200,0.002,3090.7,3089.7,0.90699264]
[1763523806797,0.4554,3090.7,3089.7,0.90699264]
[1763523807435,0.002,3090.7,3089.8,0.2604]
[1763523808305,0.002,3090.7,3090.2,0.90699264]
[1763523808615,0.002,3090.7,3090.3,0.71529216]
[1763523808987,0.002,3090.7,3089.9,1.16739264]
[1763523809183,0.002,3090.7,3089.9,0.90699264]
[1763523809421,0.002,3090.7,3090.0,0.2604]
[1763523809586,0.002,3090.7,3090.1,0.405504]
[1763523810133,0.4689,3090.2,3089.4,0.8351654]
[1763523810707,0.4689,3090.2,3089.5,0.1834958]
[1763523811236,0.9223,3090.2,3089.5,0.405504]
[1763523811805,0.4534,3090.4,3089.4,0.405504]
[1763523813331,0.4534,3090.4,3089.3,0.001]
[1763523813833,0.6662,3089.4,3089.3,0.001]
[1763523814209,1.1196,3089.4,3089.3,0.001]
[1763523815303,1.1196,3089.4,3088.9,0.001]
[1763523815524,0.4689,3089.0,3088.9,0.001]
[1763523815926,0.9223,3089.0,3088.9,0.001]
[1763523820146,0.9223,3089.0,3088.6,0.001]
[1763523820312,0.5825,3088.7,3088.6,0.001]
[1763523820806,1.046,3088.7,3088.6,0.001]
[1763523823720,0.4635,3089.1,3088.6,0.001]